Cogmind - Beta 17.1 @@@ ROGUE MODE // 2026.09.02 @ 13:13:18 Player: Clog Result: Destroyed by ZX-1LN(R) with Subdweller Laser Performance ------------- Evolutions (0) 0 Regions Visited (2) 400 Robots Destroyed (21) 105 Value Destroyed (434) 434 Prototype IDs (0) 0 Alien Tech Used (0) 0 Bonus (0) 0 TOTAL SCORE: 939 Bonus ------- None Cogmind --------- Core Integrity 0/250 Matter 220/300 Energy 40/100 System Corruption 1% Temperature Warm (101) Movement Core (250) Ox4 Location -10/Subcaves Parts ------- > --- POWER (1) -------- (None) > --- PROPULSION (2) --- (None) > --- UTILITY (2) ------ Medium Storage Unit > --- WEAPON (2) ------- Medium Laser Spread Laser > --- INVENTORY (10) --- Light Ion Engine Disposable Heat Sink Spread Laser Spread Laser Subdweller Machine Gun Subdweller Machine Gun Grenade Launcher Plasma Cutter Mace Peak State ------------ > --- POWER ------------ Light Ion Engine > --- PROPULSION ------- Aluminum Leg Aluminum Leg > --- UTILITY ---------- Small Storage Unit Seismic Detector > --- WEAPON ----------- Medium Laser Spread Laser > --- INVENTORY -------- Light Ion Engine Light Treads Light Treads Spread Laser Spread Laser Spread Laser Plasma Cutter Mace [Rating: 9] Favorites ----------- Power Light Ion Engine Engine Light Ion Engine Propulsion Light Treads Treads Light Treads Leg Aluminum Leg Utility Medium Storage Unit Device Seismic Detector Storage Medium Storage Unit Weapon Medium Laser Energy Gun Medium Laser Launcher Grenade Launcher Build | -11 -10 -10 ------- Run | Yrd Mat Sub Slots Evolved . | . . . Power . | . . . Propulsion . | . . . Utility . | . . . Weapon . | . . . Parts Attached 13 | 6 5 2 Power 1 | . 1 . Engine 1 | . 1 . Core . | . . . Reactor . | . . . Propulsion 4 | 2 2 . Treads 2 | . 2 . Leg 2 | 2 . . Wheel . | . . . Hover . | . . . Flight . | . . . Utility 3 | 2 1 . Device 1 | 1 . . Storage 2 | 1 1 . Processor . | . . . Hackware . | . . . Protection . | . . . Artifact . | . . . Weapon 5 | 2 1 2 Energy Gun 4 | 2 1 1 Energy Cannon . | . . . Ballistic Gun . | . . . Ballistic Cannon . | . . . Launcher 1 | . . 1 Special Weapon . | . . . Impact Weapon . | . . . Slashing Weapon . | . . . Piercing Weapon . | . . . Special Melee Weapon . | . . . Unidentified Prototypes . | . . . Parts Lost 5 | . . 5 Power 1 | . . 1 Propulsion 2 | . . 2 Utility 1 | . . 1 Weapon 1 | . . 1 Highest Loss Streak 2 | . . 2 To Critical Strikes . | . . . Average Backups 7 | 4 7 9 Power 1 | 1 1 1 Propulsion . | 1 . . Utility . | . . . Weapon 4 | . 4 6 Tool/Special . | . . . Unused Backups 9 | . 1 8 Power 1 | . . 1 Propulsion . | . . . Utility 1 | . . 1 Weapon 6 | . 1 5 Tool/Special 1 | . . 1 Average Slot Usage (%) 83 | . 98 71 Engine 7 | . 12 2 Treads 22 | . 21 24 Leg 3 | . 7 . Device 6 | . 14 . Storage 14 | . 14 14 Energy Gun 27 | . 28 27 Peak Build Rating 9 | 6 9 9 Average Rating 7 | 3 8 6 On Entrance 5 | . 6 9 Avg Prop Armor Cover (%) . | . . . Naked Turns . | . . . Heaviest Build 19 | 9 19 19 Greatest Support 40 | 20 40 40 Greatest Overweight (x) . | . . . Average Overweight (x) . | . . . Largest Inventory Capacity 10 | 8 10 10 Average Capacity 8 | 5 9 10 Most Carried 10 | 5 8 10 Average Carried 7 | 4 7 9 Final Capacity 10 | 8 10 10 Final Carried 9 | 5 7 9 Class Distribution -------------------- 100% | Mutant Dominant Class ---------------- Mutant | -10/Materials Mutant | -10/Subcaves Resources | -11 -10 -10 ----------- Run | Yrd Mat Sub Matter Collected 319 | 255 64 . Remotely . | . . . Salvage Created 303 | 72 119 112 Parts 29 | 6 11 12 Haulers Intercepted . | . . . Recyclers Shooed . | . . . Parts Field Recycled . | . . . Retrieved Matter . | . . . Parts Self-Destructed 5 | . . 5 Prevented . | . . . Parts Restored . | . . . Kills | -11 -10 -10 ------- Run | Yrd Mat Sub Combat Hostiles Destroyed 14 | . 8 6 Guns 10 | . 6 4 AOE 4 | . 2 2 Classes Destroyed 6 | 1 3 2 Builder 1 | . 1 . Tunneler 4 | 4 . . Turret 2 | . . 2 Swarmer 8 | . 6 2 Grunt 2 | . 2 . Subdweller 4 | . . 4 Best Kill Streak 4 | 2 3 4 Combat Bots Only 3 | . 3 2 Max Kills in Single Turn 3 | 1 3 1 Gunslinging . | . . . Exploded 2 | . 2 1 Melee . | . . . Uniques/NPCs Destroyed . | . . . Combat | -11 -10 -10 -------- Run | Yrd Mat Sub Hostile Shots Fired 112 | . 35 77 Missed 36 | . 8 28 Hits 76 | . 27 49 Projectile 76 | . 27 49 Damage Taken 857 | . 304 553 Core 265 | . 75 190 Absorbed by Shields . | . . . Core Remaining (%) 100 | 100 . . Volleys Fired 46 | 10 15 21 Largest 2 | 2 2 2 Hottest 115 | 90 115 115 Shots Fired 85 | 20 29 36 Gun 78 | 20 29 29 Cannon . | . . . Launcher 7 | . . 7 Special . | . . . Kinetic . | . . . Thermal 78 | 20 29 29 Explosive 7 | . . 7 Electromagnetic . | . . . Robot Hit Streak 25 | 5 6 25 Robot Miss Streak 7 | 1 7 2 Penetration Max . | . . . Secondary Targets 1 | . . 1 Max Gunslinging Chain 1 | . . 1 Shots Hit Robots 52 | 13 15 24 Core Hits 55 | 4 16 35 Critical Kills . | . . . Critical Parts Destroyed . | . . . Critical Strikes 4 | . 2 2 Burn 4 | . 2 2 Melee Attacks . | . . . Impact . | . . . Slashing . | . . . Piercing . | . . . Sneak Attacks . | . . . Combat Hostiles . | . . . Follow-up Attacks . | . . . Damage Inflicted 1319 | 156 522 641 Guns 726 | 156 185 385 Cannons . | . . . Explosions 593 | . 337 256 Melee . | . . . Ramming . | . . . Kinetic . | . . . Thermal 841 | 156 300 385 Explosive 478 | . 222 256 Electromagnetic . | . . . Impact . | . . . Slashing . | . . . Piercing . | . . . Highest Corruption 1 | . 1 1 Average Corruption 1 | . 1 1 Corruption Purged . | . . . Corruption Blocked . | . . . Effects 5 | . 3 2 Matter Fused 1 | . 1 . Heat Flow Errors 2 | . 1 1 Energy Discharges 1 | . 1 . Misfires 1 | . . 1 Overload Shots . | . . . Overflow Damage . | . . . Projectiles . | . . . Explosions . | . . . Melee . | . . . Knockbacks . | . . . Impact . | . . . Kinetic . | . . . Secondary . | . . . Self-Inflicted Damage 62 | . 62 . Shots 1 | . 1 . Rammed . | . . . Targets Rammed . | . . . Kicked . | . . . Crushed . | . . . Highest Temperature 360 | 75 360 119 Average Temperature 103 | 29 135 64 Received Heat Transfer 252 | . 36 216 Effects 1 | . 1 . Shutdowns 1 | . 1 . Siege Activations . | . . . Martial Activations . | . . . Shielding Activations . | . . . Robots Disrupted . | . . . Combat Hostiles . | . . . Robots Corrupted . | . . . Combat Hostiles . | . . . Parts Fried . | . . . Impact Corruptions . | . . . Robots Melted . | . . . Combat Hostiles . | . . . Parts Melted 5 | 3 2 . Heat Transferred 1874 | 421 610 843 Parts Sabotaged . | . . . Parts Stolen . | . . . Parts Stripped . | . . . Power Chain Reactions . | . . . Alert | -11 -10 -10 ------- Run | Yrd Mat Sub Maximum Alert Level . | . . . Low Security (%) 100 | 100 100 . Level 1 . | . . . Level 2 . | . . . Level 3 . | . . . Level 4 . | . . . Level 5 . | . . . High Security . | . . . Max Security . | . . . Peak Influence 149 | 10 149 . Initial . | . . . Average 23 | 1 32 . Influence Increases 363 | 20 263 80 Destroy 0b10 Robot/C 240 | . 160 80 Destroy 0b10 Robot/NC 25 | 20 5 . Destroy Leader 30 | . 30 . Successful Hack 4 | . 4 . Disable Machine 30 | . 30 . Destroy Structure 34 | . 34 . Influence Decreases 349 | 20 124 205 Entered New Map 67 | . . 67 Time Decay 242 | 20 124 98 Lost Part 40 | . . 40 Squads Dispatched 1 | . 1 . Investigation . | . . . Extermination . | . . . Reinforcement 1 | . 1 . Assault . | . . . Garrison . | . . . Intercept . | . . . Searches Triggered . | . . . Construction Impeded . | . . . Haulers Reinforced . | . . . Active Scanning Responses . | . . . Cargo Convoy Interrupts . | . . . Stealth | -11 -10 -10 --------- Run | Yrd Mat Sub Distress Signals 1 | . 1 . Communications Jammed . | . . . Distress Signals . | . . . Times Spotted 21 | . 11 10 Peak Tracking Total 6 | . 5 6 Tactical Retreats . | . . . Traps | -11 -10 -10 ------- Run | Yrd Mat Sub Traps Triggered 1 | . 1 . Indirectly . | . . . Trap Hack Attempts . | . . . Triggered . | . . . Disarmed . | . . . Reprogrammed . | . . . Reused . | . . . Traps Extracted . | . . . Installed . | . . . Triggered . | . . . Machines | -11 -10 -10 ---------- Run | Yrd Mat Sub Machines Disabled 5 | . 2 3 Max in Single Turn 3 | . 2 3 Machines Repaired . | . . . Machines Dismantled . | . . . Machines Sabotaged . | . . . Overloaded Fab Kills . | . . . Hacking | -11 -10 -10 --------- Run | Yrd Mat Sub Machines Accessed 2 | . 2 . Terminals 2 | . 2 . Fabricators . | . . . Repair Stations . | . . . Recycling Units . | . . . Scanalyzers . | . . . Garrison Access . | . . . Total Hacks 3 | . 3 . Successful 2 | . 2 . Failed 1 | . 1 . Catastrophic . | . . . Database Lockouts . | . . . Manual 3 | . 3 . Terminals 3 | . 3 . Fabricators . | . . . Repair Stations . | . . . Recycling Units . | . . . Scanalyzers . | . . . Garrison Access . | . . . Terminal Hacks . | . . . Fabricator Hacks . | . . . Repair Station Hacks . | . . . Recycling Unit Hacks . | . . . Scanalyzer . | . . . Garrison Access Hacks . | . . . Unauthorized Hacks 2 | . 2 . Terminals 2 | . 2 . Skim 2 | . 2 . Fabricators . | . . . Repair Stations . | . . . Recycling Units . | . . . Scanalyzers . | . . . Garrison Access . | . . . Data Cores Recovered . | . . . Used . | . . . Hacking Detections . | . . . Full Trace Events . | . . . Feedback Events . | . . . Feedback Blocked . | . . . Robot Schematics Acquired . | . . . Robots Built . | . . . Authchips . | . . . Time . | . . . Total Robot Build Rating . | . . . Part Schematics Acquired . | . . . Parts Built . | . . . Authchips . | . . . Time . | . . . Total Part Build Rating . | . . . Part Studies Acquired . | . . . Parts Repaired . | . . . Time . | . . . Parts Recycled . | . . . Recycled Matter . | . . . Retrieved Matter . | . . . Retrieved Components . | . . . Parts Scanalyzed . | . . . Part Schematics Acquired . | . . . Parts Damaged . | . . . Bothacking | -11 -10 -10 ------------ Run | Yrd Mat Sub Used RIF Installer . | . . . Robots Hacked . | . . . Non-combat . | . . . Combat . | . . . Robot Hacks Applied . | . . . Relay Couplers Released . | . . . Fabnet Peak Effective % . | . . . Robots Rewired . | . . . Allies Hacked . | . . . Hacks Repelled . | . . . Allies | -11 -10 -10 -------- Run | Yrd Mat Sub Total Allies . | . . . Largest Group . | . . . Highest-Rated Group . | . . . Highest-Rated Ally . | . . . Total Orders . | . . . Ally Attacks . | . . . Total Damage . | . . . Kills . | . . . Allies Corrupted . | . . . Allies Melted . | . . . Intel | -11 -10 -10 ------- Run | Yrd Mat Sub Active Infowar (turns) 382 | 15 353 14 Seismic 382 | 15 353 14 Robot Analysis Total . | . . . Derelict Logs Recovered 1 | . . 1 Drone Launches . | . . . Drone Recoveries . | . . . Exploration | -11 -10 -10 ------------- Run | Yrd Mat Sub Turns Passed 940 | 155 353 432 Spaces Moved 517 | 99 191 227 Core 13 | 13 . . Treads 378 | . 151 227 Legs 126 | 86 40 . Wheels . | . . . Hover . | . . . Flight . | . . . Fastest Speed 50 | 50 120 160 Average Speed 147 | 110 151 160 Slowest Speed 160 | 120 160 160 Overloaded Moves . | . . . Propulsion Burnouts . | . . . Robots Hopped . | . . . Potential Cave-ins . | . . . Cave-ins Triggered . | . . . Exploration Rate (%) 21 | 4 38 22 Regions Visited 2 Branch Regions 1 Pre-discovered Areas 1 | . . 1 Known Exits Taken . | . . . Unknown Exits Taken 2 | 1 1 . Scrap Searched . | . . . Spaces Dug . | . . . Terrain Destroyed 50 | . 37 13 Melee . | . . . Projectile . | . . . AOE 50 | . 37 13 Terrain Rammed . | . . . Walls Destroyed . | . . . Machines Disabled . | . . . Actions | -11 -10 -10 --------- Run | Yrd Mat Sub Total 612 | 124 227 261 Wait 13 | . 5 8 Move 515 | 98 190 227 Hop . | . . . Pick Up 20 | 10 7 3 Fast Attach 2 | 1 1 . Attach 8 | 5 2 1 Detach . | . . . Swap 3 | . 2 1 Drop 5 | . 5 . Fire 46 | 10 15 21 Melee . | . . . Ram . | . . . Kick . | . . . Crush . | . . . Escape Stasis . | . . . Rewire . | . . . Trap . | . . . Miscellaneous . | . . . Route ------- -11/Scrapyard -10/Materials (discovered 2 exits: [*Min] / [*Sub]) -10/Subcaves (discovered 1 exit: [*Rec]) History --------- Turn | Location | Event 4 | -11/Scrapyard | Discovered new exit (range 16) 156 | -11/Scrapyard | Entered Materials 326 | -10/Materials | Build established: Mutant 331 | -10/Materials | Discovered new exit (range 7) 493 | -10/Materials | Discovered new exit (range 5) 509 | -10/Materials | Entered Subcaves 510 | -10/Subcaves | Approached by a straggling Scientist 837 | -10/Subcaves | Discovered new exit (range 13) 846 | -10/Subcaves | Core integrity fell below 50% 936 | -10/Subcaves | Core integrity fell below 20% 941 | -10/Subcaves | Destroyed by ZX-1LN(R) with Subdweller Laser Last Messages --------------- here" 6R-442(c): "I think it's somewhere west of here" 00837_ EXIT=FOUND 00838_ Spread Laser destroyed. 00840_ Machine disabled. 00841_ S-10 Pest destroyed. 00843_ Lgt. Treads destroyed. 00847_ S-10 Pest destroyed. 00849_ Lgt. Assault Rifle fries itself beyond repair. 00850_ Flight Unit fries itself beyond repair. 00852_ Autobeam Turret destroyed. 6R-442(c): "I think it's somewhere west of here" 6R-442(c): "I think it's somewhere northwest of here" 00930_ J6-P55(R) suffers critical hit (Burn). 00931_ Lgt. Treads destroyed. 00933_ J6-P55(R) destroyed. 00933_ Switching to secondary target: ZX-1LN(R). 00934_ System corrupted: Heat flow error (+126). Map ----- +----------------------------------------------------+ | ???????????????????????????????????????# ###? | | ???????????????????????????????????????#### # #? | | ??????????????????????????????????????????# #? | | ??????????????????????????????????????????# #? | | ??????????????????????????????????????????# # ## | | ??????????????????????????????????????????#### | | ?????????????????????????????????????????????# | | ?????????????????????????????????????????##### | | ???????????????????????????????????????### | | ???????????????????????????????????????# | | ???????????????????????????????????????# | | ????????????????????????????????######## | | ???????????????????????????????## " "### | | ??????????????????????????????## #?## | | ??????????????????????????????# ##### | | ??????????????????????????????## | | ???????????????????????????????#< | | ??????????????????????????????## | | ??????????????????????????????# ##### | | ???????????? ?????????????????## #??? | | ???????????? ????????##??????# #???## | | ??????????? ##????# ??????## # ###??## | | ??????????? ## ???????##### ##???### | | ???????????# ######????# # #### | | ???????????# #R # ###?## | | ??????????????????# &%@ ### | | ??????????????????# c # # | | ??????????????????# ## ###?#?? | | ?????????????????# ### #### #???????? | | ????????????????# #??# ##??## ### ????? | | ????????????????# #???# ?????# #??# # #??? | | ???????????????# ##????# ?????# #???##?###??? | | ???????????????## ##??????# ?????# ###???????????? | | ????????????????#?????????# ?????# #?????????????? | | ??????????????????????????# ????? #?????????????? | | ??????????????????????????##????? #?????????????? | | ????????????????????????????????###??????????????? | | ?????????????????????????????????????????????????? | | ?????????????????????????????????????????????????? | | ?????????????????????????????????????????????????? | | ?????????????????????????????????????????????????? | | ?????????????????????????????????????????????????? | | ?????????????????????????????????????????????????? | | ?????????????????????????????????????????????????? | | ?????????????????????????????????????????????????? | | ?????????????????????????????????????????????????? | | ?????????????????????????????????????????????????? | | ?????????????????????????????????????????????????? | | | | | +----------------------------------------------------+ Best States ------------- Heat Dissipation 25 Energy Generation 10 Energy Capacity 125 Matter Stores 300 Matter Capacity 300 Sight Range 16 Terrain Scan Density 10 Evasion (%) 55 Recoil Reduction 2 Item Schematics ----------------- None Robot Schematics ------------------ None Fabricated ------------ Nothing Repaired ---------- Nothing Studied --------- None Alien Tech Used ----------------- None Achievements -------------- None Challenges ------------ None Game ------ Seed CorruptionBehemothPropulsion Manual? 0 Play Time 00:08:08 Cumulative 41.1 hours Start 2026.09.02 @ 13:05:53 End 2026.09.02 @ 13:13:18 Sessions 1 Manual Loads 0 Difficulty Rogue Special Mode None Game No. 46 Rogue 43 Adventurer 3 Explorer 0 Win Type - Total 1 Types 1/0/0/0/0/0/0/0/0/0 Lore% 37 Gallery% 34 Achievement% 33 Wizard Run 0 Options --------- Layout 1 ASCII 0 Keyboard 0 Movement Mouse Keybinds 0 Fullscreen 1 Font 32/SmallcapsGlow Map View 50x35 Zoom Use 0% Tactical HUD 1 Map Filters NONE Filters NONE Steam 1 RUN: 78b50637-0bc5-487a-b653-631569fc7f16